[Event "*** Titled Tuesday Blitz"]
[Site "Chess.com"]
[Date "2020.04.14"]
[Round "7"]
[White "ItalianMachine"]
[Black "Vice64"]
[Result "1-0"]
[WhiteElo "2303"]
[BlackElo "2455"]
[TimeControl "180+1"]
[EndTime "11:10:46 PDT"]
[Termination "ItalianMachine won by resignation"]

1. Nf3 {[%clk 0:03:00.9]} 1... Nf6 {[%clk 0:02:59.5]} 2. g3 {[%clk 0:02:59]}
2... b6 {[%clk 0:02:57.9]} 3. Bg2 {[%clk 0:02:59.2]} 3... Bb7 {[%clk 0:02:58.6]}
4. O-O {[%clk 0:02:59.8]} 4... e6 {[%clk 0:02:59.2]} 5. d3 {[%clk 0:02:59.9]}
5... Be7 {[%clk 0:02:59.8]} 6. Nbd2 {[%clk 0:03:00.1]} 6... c5 {[%clk
0:02:59.5]} 7. e4 {[%clk 0:02:59.6]} 7... d5 {[%clk 0:02:59.7]} 8. e5 {[%clk
0:02:59]} 8... Nfd7 {[%clk 0:02:59.6]} 9. c3 {[%clk 0:02:59.7]} 9... Nc6 {[%clk
0:02:58.5]} 10. Re1 {[%clk 0:02:58]} 10... Qc7 {[%clk 0:02:58]} 11. d4 {[%clk
0:02:49.9]} 11... cxd4 {[%clk 0:02:53.5]} 12. Nxd4 {[%clk 0:02:34.1]} 12...
Ncxe5 {[%clk 0:02:48.9]} 13. N2b3 {[%clk 0:02:29.3]} 13... Ng6 {[%clk
0:02:36.9]} 14. h4 {[%clk 0:02:27.9]} 14... h5 {[%clk 0:02:30.1]} 15. Qc2 {[%clk
0:02:17.4]} 15... Nge5 {[%clk 0:02:15.2]} 16. f4 {[%clk 0:02:09]} 16... Ng4
{[%clk 0:02:10.9]} 17. Rxe6 {[%clk 0:02:03.5]} 17... fxe6 {[%clk 0:02:11.8]} 18.
Qg6+ {[%clk 0:02:02.1]} 18... Kd8 {[%clk 0:02:05.5]} 19. Nxe6+ {[%clk
0:02:02.5]} 19... Kc8 {[%clk 0:02:06]} 20. Nxc7 {[%clk 0:02:01.6]} 20... Kxc7
{[%clk 0:02:06.4]} 21. f5 {[%clk 0:01:38.3]} 21... Bf6 {[%clk 0:01:52.3]} 22.
Bf4+ {[%clk 0:01:36.9]} 22... Kc6 {[%clk 0:01:50.8]} 23. Qf7 {[%clk 0:01:35.5]}
23... Kb5 {[%clk 0:01:42]} 24. Qxd7+ {[%clk 0:01:31.6]} 1-0

[Event "*** Titled Tuesday Blitz"]
[Site "Chess.com"]
[Date "2020.04.14"]
[Round "7"]
[White "RovenVogel"]
[Black "KarpovVadim"]
[Result "1-0"]
[WhiteElo "2628"]
[BlackElo "2414"]
[TimeControl "180+1"]
[EndTime "11:10:53 PDT"]
[Termination "RovenVogel won by resignation"]

1. d4 {[%clk 0:03:00.9]} 1... Nf6 {[%clk 0:02:58.2]} 2. c4 {[%clk 0:03:00.5]}
2... e6 {[%clk 0:02:57.6]} 3. Nf3 {[%clk 0:03:00.1]} 3... d5 {[%clk 0:02:57.4]}
4. Nc3 {[%clk 0:02:59.1]} 4... Be7 {[%clk 0:02:57]} 5. Bf4 {[%clk 0:02:57.1]}
5... O-O {[%clk 0:02:56.8]} 6. e3 {[%clk 0:02:57.1]} 6... Nbd7 {[%clk
0:02:55.5]} 7. c5 {[%clk 0:02:56.8]} 7... Nh5 {[%clk 0:02:54.7]} 8. Bd3 {[%clk
0:02:55.8]} 8... Nxf4 {[%clk 0:02:54.3]} 9. exf4 {[%clk 0:02:55.5]} 9... c6
{[%clk 0:02:54.2]} 10. Qc2 {[%clk 0:02:54.5]} 10... h6 {[%clk 0:02:51.3]} 11.
O-O {[%clk 0:02:54.7]} 11... b6 {[%clk 0:02:51.1]} 12. b4 {[%clk 0:02:53.8]}
12... a5 {[%clk 0:02:50.7]} 13. a3 {[%clk 0:02:54.1]} 13... Ba6 {[%clk
0:02:48.1]} 14. Bxa6 {[%clk 0:02:50.4]} 14... Rxa6 {[%clk 0:02:47.2]} 15. b5
{[%clk 0:02:36.6]} 15... cxb5 {[%clk 0:02:45.6]} 16. c6 {[%clk 0:02:36.6]} 16...
Nf6 {[%clk 0:02:40.9]} 17. Nxb5 {[%clk 0:02:34.8]} 17... a4 {[%clk 0:02:39.7]}
18. Ne5 {[%clk 0:02:31]} 18... Re8 {[%clk 0:02:08.8]} 19. Rfc1 {[%clk 0:02:21]}
19... Qa8 {[%clk 0:01:58.9]} 20. Nc7 {[%clk 0:02:19.6]} 20... Qc8 {[%clk
0:01:58.3]} 21. Nxa6 {[%clk 0:02:13.2]} 21... Qxa6 {[%clk 0:01:57.6]} 22. c7
{[%clk 0:02:13.3]} 22... Rc8 {[%clk 0:01:57.1]} 23. Qc6 {[%clk 0:02:11.7]} 23...
Ne8 {[%clk 0:01:51.4]} 24. Qd7 {[%clk 0:02:08.4]} 24... Kf8 {[%clk 0:01:45.7]}
25. Rab1 {[%clk 0:02:01.8]} 25... Bxa3 {[%clk 0:01:40.7]} 26. Rxb6 {[%clk
0:01:54.9]} 26... Qxb6 {[%clk 0:01:37.6]} 27. Qxc8 {[%clk 0:01:54.1]} 27... Bxc1
{[%clk 0:01:34]} 28. Nd7+ {[%clk 0:01:53.3]} 1-0

[Event "*** Titled Tuesday Blitz"]
[Site "Chess.com"]
[Date "2020.04.14"]
[Round "7"]
[White "PIwan"]
[Black "jwillz14"]
[Result "1-0"]
[WhiteElo "2559"]
[BlackElo "2388"]
[TimeControl "180+1"]
[EndTime "11:11:07 PDT"]
[Termination "PIwan won by resignation"]

1. c4 {[%clk 0:03:00.9]} 1... c6 {[%clk 0:03:00.5]} 2. e4 {[%clk 0:03:00.5]}
2... d5 {[%clk 0:03:01.4]} 3. exd5 {[%clk 0:03:01.4]} 3... cxd5 {[%clk
0:03:02.3]} 4. cxd5 {[%clk 0:03:02.3]} 4... Nf6 {[%clk 0:03:03.2]} 5. Nc3 {[%clk
0:03:02.8]} 5... Nxd5 {[%clk 0:03:03.5]} 6. Nf3 {[%clk 0:03:03.3]} 6... Nc6
{[%clk 0:03:02.5]} 7. d4 {[%clk 0:03:02.4]} 7... e6 {[%clk 0:02:55.3]} 8. Bd3
{[%clk 0:03:01.7]} 8... Be7 {[%clk 0:02:54.5]} 9. O-O {[%clk 0:03:01.1]} 9...
O-O {[%clk 0:02:53.9]} 10. Re1 {[%clk 0:03:01.7]} 10... Bf6 {[%clk 0:02:53.8]}
11. Be4 {[%clk 0:03:01.6]} 11... Nce7 {[%clk 0:02:52.6]} 12. Qd3 {[%clk
0:02:49.8]} 12... g6 {[%clk 0:02:52.6]} 13. Bh6 {[%clk 0:02:48.9]} 13... Re8
{[%clk 0:02:52.7]} 14. Rac1 {[%clk 0:02:45.2]} 14... b6 {[%clk 0:02:34.2]} 15.
Bg5 {[%clk 0:02:31.7]} 15... Bxg5 {[%clk 0:02:19.8]} 16. Nxg5 {[%clk 0:02:32.6]}
16... Nf5 {[%clk 0:02:08]} 17. Bxd5 {[%clk 0:02:11.1]} 17... exd5 {[%clk
0:02:07.8]} 18. Rxe8+ {[%clk 0:02:07.9]} 18... Qxe8 {[%clk 0:02:07.4]} 19. Nxd5
{[%clk 0:02:07.9]} 19... Qd8 {[%clk 0:02:07.4]} 20. Ne4 {[%clk 0:01:47.1]} 20...
Bb7 {[%clk 0:02:06.8]} 21. Ndf6+ {[%clk 0:01:43.9]} 21... Kg7 {[%clk 0:02:05.2]}
22. d5 {[%clk 0:01:42.5]} 22... Rc8 {[%clk 0:02:05.3]} 23. Rc3 {[%clk 0:01:39]}
23... Nd6 {[%clk 0:02:00.5]} 24. Rxc8 {[%clk 0:01:27.8]} 24... Bxc8 {[%clk
0:01:52.1]} 25. Nxd6 {[%clk 0:01:22.3]} 25... Qxd6 {[%clk 0:01:51]} 26. Ne8+
{[%clk 0:01:22]} 1-0

[Event "*** Titled Tuesday Blitz"]
[Site "Chess.com"]
[Date "2020.04.14"]
[Round "7"]
[White "mishanick"]
[Black "AndrewMaco"]
[Result "1-0"]
[WhiteElo "2987"]
[BlackElo "2611"]
[TimeControl "180+1"]
[EndTime "11:11:10 PDT"]
[Termination "mishanick won by resignation"]

1. d4 {[%clk 0:03:00.9]} 1... Nf6 {[%clk 0:02:57.8]} 2. c4 {[%clk 0:03:01.2]}
2... e6 {[%clk 0:02:54]} 3. Nf3 {[%clk 0:03:00.9]} 3... d5 {[%clk 0:02:53.9]} 4.
Nc3 {[%clk 0:03:01.2]} 4... Bb4 {[%clk 0:02:53.4]} 5. Bg5 {[%clk 0:03:00.8]}
5... dxc4 {[%clk 0:02:52.3]} 6. e4 {[%clk 0:03:00.5]} 6... h6 {[%clk 0:02:52.8]}
7. Bxf6 {[%clk 0:03:00.5]} 7... Qxf6 {[%clk 0:02:53.7]} 8. Bxc4 {[%clk
0:03:00.9]} 8... c5 {[%clk 0:02:54.3]} 9. O-O {[%clk 0:03:01.4]} 9... O-O {[%clk
0:02:54.7]} 10. e5 {[%clk 0:03:02]} 10... Qd8 {[%clk 0:02:53.6]} 11. Ne4 {[%clk
0:03:02.5]} 11... cxd4 {[%clk 0:02:54.1]} 12. Nxd4 {[%clk 0:03:02.7]} 12... Qc7
{[%clk 0:02:51.5]} 13. Nf6+ {[%clk 0:03:02]} 13... Kh8 {[%clk 0:02:24.8]} 14.
Qb1 {[%clk 0:03:01.7]} 14... gxf6 {[%clk 0:02:09.5]} 15. Qc1 {[%clk 0:03:01.9]}
15... Qxe5 {[%clk 0:01:57.9]} 16. Qxh6+ {[%clk 0:03:01.5]} 16... Kg8 {[%clk
0:01:58.4]} 17. f4 {[%clk 0:03:02.4]} 17... Qxd4+ {[%clk 0:01:50.9]} 18. Kh1
{[%clk 0:03:02.9]} 18... f5 {[%clk 0:01:30.3]} 19. Rf3 {[%clk 0:03:02.8]} 19...
Qg7 {[%clk 0:01:30.5]} 20. Rg3 {[%clk 0:03:03]} 20... Qxg3 {[%clk 0:01:31.2]}
21. hxg3 {[%clk 0:03:03.9]} 21... Bc5 {[%clk 0:01:20.9]} 22. g4 {[%clk
0:03:03.4]} 22... Bd4 {[%clk 0:01:14.8]} 23. gxf5 {[%clk 0:02:50.8]} 23... Bg7
{[%clk 0:01:12.8]} 24. Qg5 {[%clk 0:02:50.7]} 24... exf5 {[%clk 0:01:10.9]} 25.
Re1 {[%clk 0:02:51.1]} 25... Nc6 {[%clk 0:01:05.6]} 26. Re3 {[%clk 0:02:50.6]}
1-0

[Event "*** Titled Tuesday Blitz"]
[Site "Chess.com"]
[Date "2020.04.14"]
[Round "7"]
[White "HashtagChess"]
[Black "arjwezhrtdrz"]
[Result "0-1"]
[WhiteElo "1638"]
[BlackElo "2199"]
[TimeControl "180+1"]
[EndTime "11:11:15 PDT"]
[Termination "arjwezhrtdrz won by resignation"]

1. e4 {[%clk 0:03:00.9]} 1... e6 {[%clk 0:02:58.8]} 2. Nf3 {[%clk 0:02:59.1]}
2... d5 {[%clk 0:02:59.7]} 3. Nc3 {[%clk 0:02:56.9]} 3... Nf6 {[%clk 0:02:57.5]}
4. e5 {[%clk 0:02:54.1]} 4... Nfd7 {[%clk 0:02:57.5]} 5. d4 {[%clk 0:02:52.6]}
5... a6 {[%clk 0:02:57.4]} 6. Bd3 {[%clk 0:02:48.5]} 6... c5 {[%clk 0:02:56]} 7.
dxc5 {[%clk 0:02:48.1]} 7... Nc6 {[%clk 0:02:54.4]} 8. Bf4 {[%clk 0:02:47.5]}
8... Nxc5 {[%clk 0:02:48.2]} 9. Be2 {[%clk 0:02:29.4]} 9... Be7 {[%clk
0:02:45.7]} 10. O-O {[%clk 0:02:28.9]} 10... O-O {[%clk 0:02:45.7]} 11. a3
{[%clk 0:02:27.4]} 11... b5 {[%clk 0:02:45.6]} 12. b4 {[%clk 0:02:27.4]} 12...
Nd7 {[%clk 0:02:44.3]} 13. Bd3 {[%clk 0:02:27.9]} 13... Re8 {[%clk 0:02:30.3]}
14. Re1 {[%clk 0:02:17.4]} 14... Nf8 {[%clk 0:02:28.9]} 15. Qd2 {[%clk
0:02:09.5]} 15... Ng6 {[%clk 0:02:27.1]} 16. Bg5 {[%clk 0:02:07.1]} 16... Bxg5
{[%clk 0:02:25.4]} 17. Qxg5 {[%clk 0:02:05.8]} 17... Qxg5 {[%clk 0:02:25.1]} 18.
Nxg5 {[%clk 0:02:05.1]} 18... Ncxe5 {[%clk 0:02:13.7]} 19. f4 {[%clk 0:01:53.3]}
19... Nxd3 {[%clk 0:02:09.1]} 20. cxd3 {[%clk 0:01:49.1]} 20... Nxf4 {[%clk
0:02:09.1]} 21. Rf1 {[%clk 0:01:47.8]} 21... h6 {[%clk 0:01:53.7]} 22. Nxf7
{[%clk 0:01:42.1]} 22... Nxd3 {[%clk 0:01:41.1]} 23. Ne5 {[%clk 0:01:22.3]}
23... Nxe5 {[%clk 0:01:40.5]} 0-1

[Event "*** Titled Tuesday Blitz"]
[Site "Chess.com"]
[Date "2020.04.14"]
[Round "7"]
[White "MoreChessJulia"]
[Black "Treacherous_horse64"]
[Result "1-0"]
[WhiteElo "1748"]
[BlackElo "2180"]
[TimeControl "180+1"]
[EndTime "11:11:17 PDT"]
[Termination "MoreChessJulia won by checkmate"]

1. d4 {[%clk 0:02:57.1]} 1... d5 {[%clk 0:02:49]} 2. c4 {[%clk 0:02:54.9]} 2...
e6 {[%clk 0:02:48.3]} 3. cxd5 {[%clk 0:02:54.1]} 3... exd5 {[%clk 0:02:48]} 4.
Nc3 {[%clk 0:02:53.9]} 4... c6 {[%clk 0:02:47.7]} 5. h3 {[%clk 0:02:50.4]} 5...
Nf6 {[%clk 0:02:47.2]} 6. Bg5 {[%clk 0:02:49.9]} 6... Ke7 {[%clk 0:02:47.1]} 7.
e4 {[%clk 0:02:45.4]} 7... dxe4 {[%clk 0:02:46.9]} 8. Nxe4 {[%clk 0:02:44]} 8...
Qa5+ {[%clk 0:02:39.4]} 9. Bd2 {[%clk 0:02:41.1]} 9... Qc7 {[%clk 0:02:32.7]}
10. Bb4+ {[%clk 0:02:39.9]} 10... Ke8 {[%clk 0:02:27.9]} 11. Nxf6+ {[%clk
0:02:39]} 11... gxf6 {[%clk 0:02:28.8]} 12. Bc3 {[%clk 0:02:31.9]} 12... Be6
{[%clk 0:02:27.9]} 13. Ne2 {[%clk 0:02:28.1]} 13... Nd7 {[%clk 0:02:27.7]} 14.
Qd2 {[%clk 0:02:27.8]} 14... h5 {[%clk 0:02:26.4]} 15. Nf4 {[%clk 0:02:27.2]}
15... Bh6 {[%clk 0:02:23.6]} 16. g3 {[%clk 0:02:26.9]} 16... h4 {[%clk 0:02:20]}
17. Kd1 {[%clk 0:02:21]} 17... Bxf4 {[%clk 0:02:09.7]} 18. Qxf4 {[%clk 0:02:20]}
18... Qxf4 {[%clk 0:02:09.8]} 19. gxf4 {[%clk 0:02:19.8]} 19... Nb6 {[%clk
0:02:08.8]} 20. Kc2 {[%clk 0:02:18.5]} 20... Rg8 {[%clk 0:02:06.7]} 21. a4
{[%clk 0:02:15.4]} 21... Nd5 {[%clk 0:02:04.1]} 22. Bd2 {[%clk 0:02:15.1]} 22...
Bf5+ {[%clk 0:02:03.2]} 23. Bd3 {[%clk 0:02:12]} 23... Bxd3+ {[%clk 0:02:02.9]}
24. Kxd3 {[%clk 0:02:11.8]} 24... Kd7 {[%clk 0:02:03]} 25. Rag1 {[%clk
0:02:10.1]} 25... f5 {[%clk 0:01:59.8]} 26. b4 {[%clk 0:02:04.3]} 26... Nf6
{[%clk 0:01:56.8]} 27. Rg5 {[%clk 0:02:02]} 27... Ne4 {[%clk 0:01:56.1]} 28.
Rxf5 {[%clk 0:01:58.8]} 28... Nxf2+ {[%clk 0:01:55.8]} 29. Kc4 {[%clk
0:01:49.7]} 29... Nxh1 {[%clk 0:01:56.7]} 30. Rxf7+ {[%clk 0:01:49.4]} 30... Ke6
{[%clk 0:01:57]} 31. Rxb7 {[%clk 0:01:47.5]} 31... Nf2 {[%clk 0:01:57.4]} 32.
Rh7 {[%clk 0:01:43.4]} 32... Rh8 {[%clk 0:01:56.1]} 33. f5+ {[%clk 0:01:40.9]}
33... Kxf5 {[%clk 0:01:55.7]} 34. Rf7+ {[%clk 0:01:40.4]} 34... Ke4 {[%clk
0:01:53]} 35. Rf4# {[%clk 0:01:39.5]} 1-0

[Event "*** Titled Tuesday Blitz"]
[Site "Chess.com"]
[Date "2020.04.14"]
[Round "7"]
[White "Zubrrr"]
[Black "lestri"]
[Result "1-0"]
[WhiteElo "2708"]
[BlackElo "2541"]
[TimeControl "180+1"]
[EndTime "11:11:20 PDT"]
[Termination "Zubrrr won by resignation"]

1. c4 {[%clk 0:02:48.1]} 1... d6 {[%clk 0:03:00.9]} 2. Nc3 {[%clk 0:02:46.8]}
2... c5 {[%clk 0:02:59.7]} 3. g3 {[%clk 0:02:47.2]} 3... g6 {[%clk 0:02:58.9]}
4. Bg2 {[%clk 0:02:47.6]} 4... Bg7 {[%clk 0:02:59.4]} 5. Nf3 {[%clk 0:02:48]}
5... Nc6 {[%clk 0:02:59.3]} 6. O-O {[%clk 0:02:45.7]} 6... a6 {[%clk 0:02:59.7]}
7. Ne1 {[%clk 0:02:42.4]} 7... Rb8 {[%clk 0:02:57.4]} 8. Nc2 {[%clk 0:02:41.2]}
8... e6 {[%clk 0:02:56.6]} 9. e3 {[%clk 0:02:22.1]} 9... Nge7 {[%clk 0:02:55.5]}
10. d4 {[%clk 0:02:22.2]} 10... O-O {[%clk 0:02:54.8]} 11. b3 {[%clk 0:01:52]}
11... cxd4 {[%clk 0:02:49.7]} 12. exd4 {[%clk 0:01:51.9]} 12... Nf5 {[%clk
0:02:48.6]} 13. Ne2 {[%clk 0:01:48.5]} 13... e5 {[%clk 0:02:35.1]} 14. Bb2
{[%clk 0:01:31.3]} 14... exd4 {[%clk 0:02:27.2]} 15. Nexd4 {[%clk 0:01:31.3]}
15... Ncxd4 {[%clk 0:02:22.1]} 16. Nxd4 {[%clk 0:01:32.2]} 16... Qb6 {[%clk
0:02:15.4]} 17. Nxf5 {[%clk 0:01:31.5]} 17... Bxb2 {[%clk 0:02:16.3]} 18. Ne7+
{[%clk 0:01:30.2]} 18... Kg7 {[%clk 0:02:14.2]} 19. Rb1 {[%clk 0:01:30.1]} 19...
Ba3 {[%clk 0:02:07.3]} 20. b4 {[%clk 0:01:02.9]} 20... Be6 {[%clk 0:02:04.8]}
21. Qb3 {[%clk 0:00:55.3]} 1-0

[Event "*** Titled Tuesday Blitz"]
[Site "Chess.com"]
[Date "2020.04.14"]
[Round "7"]
[White "nocnypako"]
[Black "poliplaza"]
[Result "1-0"]
[WhiteElo "2594"]
[BlackElo "2388"]
[TimeControl "180+1"]
[EndTime "11:11:25 PDT"]
[Termination "nocnypako won by resignation"]

1. d4 {[%clk 0:03:00.9]} 1... c5 {[%clk 0:03:00.4]} 2. d5 {[%clk 0:02:59.1]}
2... Nf6 {[%clk 0:03:01]} 3. c4 {[%clk 0:02:58.3]} 3... e6 {[%clk 0:03:01.3]} 4.
Nc3 {[%clk 0:02:58.9]} 4... exd5 {[%clk 0:03:01.9]} 5. cxd5 {[%clk 0:02:59.8]}
5... d6 {[%clk 0:03:02.5]} 6. e4 {[%clk 0:02:59.9]} 6... g6 {[%clk 0:03:03.1]}
7. f4 {[%clk 0:03:00.5]} 7... Bg7 {[%clk 0:03:03.6]} 8. Bb5+ {[%clk 0:03:00.2]}
8... Nfd7 {[%clk 0:03:03.7]} 9. a4 {[%clk 0:02:59.3]} 9... O-O {[%clk 0:03:03]}
10. Nf3 {[%clk 0:02:59.9]} 10... Na6 {[%clk 0:02:56.2]} 11. O-O {[%clk
0:02:58.8]} 11... Nc7 {[%clk 0:02:56.4]} 12. Bxd7 {[%clk 0:02:58.1]} 12... Bxd7
{[%clk 0:02:55.9]} 13. f5 {[%clk 0:02:59]} 13... gxf5 {[%clk 0:02:52.3]} 14. Bg5
{[%clk 0:02:57.6]} 14... f6 {[%clk 0:02:48.8]} 15. Bf4 {[%clk 0:02:54.9]} 15...
fxe4 {[%clk 0:02:37.2]} 16. Nxe4 {[%clk 0:02:54.3]} 16... Bg4 {[%clk 0:02:35.6]}
17. Nxd6 {[%clk 0:02:48.6]} 17... f5 {[%clk 0:02:29.7]} 18. Qb3 {[%clk
0:02:37.7]} 18... Rf6 {[%clk 0:01:58.2]} 19. Nc4 {[%clk 0:02:07.8]} 19... Nxd5
{[%clk 0:01:39.7]} 20. Ne3 {[%clk 0:02:07.8]} 20... c4 {[%clk 0:01:18.4]} 21.
Qxc4 {[%clk 0:02:04.3]} 21... Rc6 {[%clk 0:01:12.8]} 22. Qxd5+ {[%clk
0:02:03.5]} 22... Qxd5 {[%clk 0:01:13.7]} 23. Nxd5 {[%clk 0:02:03.9]} 23... Rc2
{[%clk 0:01:13.9]} 24. Rac1 {[%clk 0:01:58.9]} 24... Rxb2 {[%clk 0:01:08.6]} 25.
Ne5 {[%clk 0:01:55]} 25... Rd8 {[%clk 0:01:05.4]} 26. Ne7+ {[%clk 0:01:50.6]}
26... Kf8 {[%clk 0:01:04.6]} 27. Nxg4 {[%clk 0:01:49.1]} 27... Kxe7 {[%clk
0:00:58.7]} 28. Bg5+ {[%clk 0:01:47.3]} 28... Bf6 {[%clk 0:00:58.9]} 29. Bxf6+
{[%clk 0:01:47.2]} 1-0

[Event "*** Titled Tuesday Blitz"]
[Site "Chess.com"]
[Date "2020.04.14"]
[Round "7"]
[White "sergoy"]
[Black "CHESSMASTER759"]
[Result "1/2-1/2"]
[WhiteElo "2897"]
[BlackElo "2768"]
[TimeControl "180+1"]
[EndTime "11:11:34 PDT"]
[Termination "Game drawn by agreement"]

1. d4 {[%clk 0:03:00.7]} 1... Nf6 {[%clk 0:02:57.5]} 2. c4 {[%clk 0:03:00.8]}
2... e6 {[%clk 0:02:57.1]} 3. Nf3 {[%clk 0:03:01.4]} 3... d5 {[%clk 0:02:56.2]}
4. Nc3 {[%clk 0:02:59.5]} 4... c5 {[%clk 0:02:55.4]} 5. cxd5 {[%clk 0:02:59.1]}
5... Nxd5 {[%clk 0:02:54.9]} 6. e4 {[%clk 0:02:59.3]} 6... Nxc3 {[%clk
0:02:54.5]} 7. bxc3 {[%clk 0:03:00.2]} 7... cxd4 {[%clk 0:02:55.3]} 8. cxd4
{[%clk 0:02:58.4]} 8... Bb4+ {[%clk 0:02:55.2]} 9. Bd2 {[%clk 0:02:58.9]} 9...
Bxd2+ {[%clk 0:02:55.3]} 10. Qxd2 {[%clk 0:02:59.8]} 10... O-O {[%clk
0:02:55.9]} 11. Bc4 {[%clk 0:02:58.7]} 11... Nd7 {[%clk 0:02:52.5]} 12. O-O
{[%clk 0:02:58.6]} 12... b6 {[%clk 0:02:52]} 13. Rfe1 {[%clk 0:02:59.1]} 13...
Bb7 {[%clk 0:02:50.1]} 14. Rad1 {[%clk 0:02:59.7]} 14... Rc8 {[%clk 0:02:45.6]}
15. Bb3 {[%clk 0:03:00]} 15... h6 {[%clk 0:02:42.5]} 16. h3 {[%clk 0:03:00]}
16... Qf6 {[%clk 0:02:35.7]} 17. Qe3 {[%clk 0:02:23.6]} 17... Rfd8 {[%clk
0:02:32.1]} 18. d5 {[%clk 0:02:19.8]} 18... exd5 {[%clk 0:02:28.8]} 19. e5
{[%clk 0:02:19.8]} 19... Qg6 {[%clk 0:02:26.3]} 20. Nd4 {[%clk 0:02:16.6]} 20...
Re8 {[%clk 0:02:20.4]} 21. f4 {[%clk 0:02:15]} 21... Nc5 {[%clk 0:02:19.2]} 22.
Bc2 {[%clk 0:02:05.6]} 22... Ne4 {[%clk 0:02:19]} 23. Rf1 {[%clk 0:02:05.2]}
23... f5 {[%clk 0:02:15.4]} 24. Bb3 {[%clk 0:01:00]} 24... Rc3 {[%clk 0:02:12]}
25. Rd3 {[%clk 0:01:00.2]} 25... Rec8 {[%clk 0:02:06.7]} 26. Rfd1 {[%clk
0:00:48.2]} 26... Kh7 {[%clk 0:02:00]} 27. Rxc3 {[%clk 0:00:43.6]} 27... Rxc3
{[%clk 0:01:58.2]} 28. Rd3 {[%clk 0:00:44.1]} 1/2-1/2

[Event "*** Titled Tuesday Blitz"]
[Site "Chess.com"]
[Date "2020.04.14"]
[Round "7"]
[White "Lestofante90"]
[Black "kungmongmanh"]
[Result "1-0"]
[WhiteElo "2785"]
[BlackElo "2577"]
[TimeControl "180+1"]
[EndTime "11:11:43 PDT"]
[Termination "Lestofante90 won by checkmate"]

1. d4 {[%clk 0:02:33.7]} 1... Nf6 {[%clk 0:02:54.1]} 2. c4 {[%clk 0:02:33.5]}
2... e6 {[%clk 0:02:48.7]} 3. Nf3 {[%clk 0:02:31.8]} 3... Bb4+ {[%clk
0:02:48.8]} 4. Bd2 {[%clk 0:02:31.3]} 4... Qe7 {[%clk 0:02:47.7]} 5. g3 {[%clk
0:02:30.5]} 5... O-O {[%clk 0:02:47.6]} 6. Bg2 {[%clk 0:02:29.4]} 6... Bxd2+
{[%clk 0:02:47.8]} 7. Qxd2 {[%clk 0:02:27.8]} 7... d6 {[%clk 0:02:48.4]} 8. Nc3
{[%clk 0:02:23.6]} 8... e5 {[%clk 0:02:48.6]} 9. O-O {[%clk 0:02:19.8]} 9... h6
{[%clk 0:02:46.6]} 10. e4 {[%clk 0:02:17.8]} 10... Bg4 {[%clk 0:02:45.1]} 11.
Ne1 {[%clk 0:02:16.7]} 11... exd4 {[%clk 0:02:43]} 12. Qxd4 {[%clk 0:02:16.4]}
12... Nc6 {[%clk 0:02:43.6]} 13. Qd2 {[%clk 0:02:11.4]} 13... Qd7 {[%clk
0:02:29.6]} 14. Nc2 {[%clk 0:02:03.7]} 14... Bh3 {[%clk 0:02:27.9]} 15. Rad1
{[%clk 0:02:00.3]} 15... Rae8 {[%clk 0:02:23.5]} 16. f3 {[%clk 0:01:59.5]} 16...
Bxg2 {[%clk 0:02:23.1]} 17. Kxg2 {[%clk 0:01:59.3]} 17... Ne5 {[%clk 0:02:19.6]}
18. Ne3 {[%clk 0:01:58]} 18... Ng6 {[%clk 0:02:11.2]} 19. Qd4 {[%clk 0:01:33]}
19... a6 {[%clk 0:02:06.9]} 20. c5 {[%clk 0:01:30.8]} 20... Rd8 {[%clk
0:01:42.4]} 21. cxd6 {[%clk 0:01:19.4]} 21... cxd6 {[%clk 0:01:38.9]} 22. Nf5
{[%clk 0:01:16.1]} 22... Qe6 {[%clk 0:01:34.3]} 23. Nd5 {[%clk 0:01:12.3]} 23...
Nxd5 {[%clk 0:01:11]} 24. Qxg7# {[%clk 0:01:03.9]} 1-0

[Event "*** Titled Tuesday Blitz"]
[Site "Chess.com"]
[Date "2020.04.14"]
[Round "7"]
[White "Training_Day"]
[Black "Alkhoori90"]
[Result "0-1"]
[WhiteElo "2297"]
[BlackElo "2082"]
[TimeControl "180+1"]
[EndTime "11:11:54 PDT"]
[Termination "Alkhoori90 won by resignation"]

1. e4 {[%clk 0:02:48.3]} 1... d5 {[%clk 0:03:00.2]} 2. exd5 {[%clk 0:02:47.8]}
2... Qxd5 {[%clk 0:03:01.1]} 3. Nc3 {[%clk 0:02:47.7]} 3... Qd6 {[%clk
0:03:01.6]} 4. d4 {[%clk 0:02:46.3]} 4... Nf6 {[%clk 0:03:02]} 5. Nf3 {[%clk
0:02:45.3]} 5... Bg4 {[%clk 0:03:02.4]} 6. h3 {[%clk 0:02:40.2]} 6... Bh5 {[%clk
0:03:02.7]} 7. g4 {[%clk 0:02:34.1]} 7... Bg6 {[%clk 0:03:03]} 8. Ne5 {[%clk
0:02:34.6]} 8... Nbd7 {[%clk 0:03:02.6]} 9. Bf4 {[%clk 0:02:28.6]} 9... Nxe5
{[%clk 0:03:02]} 10. dxe5 {[%clk 0:02:18.1]} 10... Qb4 {[%clk 0:03:01.8]} 11.
exf6 {[%clk 0:01:14]} 11... Qxf4 {[%clk 0:02:57.9]} 12. Bg2 {[%clk 0:01:14.2]}
12... c6 {[%clk 0:02:52]} 13. fxe7 {[%clk 0:01:08.7]} 13... Bxe7 {[%clk
0:02:49.7]} 14. O-O {[%clk 0:00:36.5]} 14... O-O {[%clk 0:02:47.5]} 15. Ne2
{[%clk 0:00:33.3]} 15... Qg5 {[%clk 0:02:37]} 16. Qc1 {[%clk 0:00:13.3]} 16...
Qc5 {[%clk 0:02:27.3]} 17. c3 {[%clk 0:00:08.7]} 17... f5 {[%clk 0:02:22.2]} 18.
g5 {[%clk 0:00:02.6]} 18... f4 {[%clk 0:02:20]} 19. Nd4 {[%clk 0:00:01.4]} 19...
f3 {[%clk 0:02:06.5]} 20. Bxf3 {[%clk 0:00:01.5]} 20... Bxg5 {[%clk 0:02:05.3]}
21. Kh1 {[%clk 0:00:02.1]} 21... Bxc1 {[%clk 0:02:04.7]} 0-1